bitfinex/quotes_SOLUSD_20250819
["timestamp","ask_amount","ask_price","bid_price","bid_amount"]
[1755621502893,0.03,178.45,178.43,16.58753715]
[1755621503118,0.03,178.45,178.41,26.0]
[1755621503119,0.03,178.45,178.44,16.58753715]
[1755621503318,0.03,178.45,178.39,13.59559401]
[1755621503515,16.58753715,178.4,178.34,13.59559401]
[1755621503726,0.68,178.4,178.35,16.58753715]
[1755621503928,0.68,178.39,178.37,16.58753715]
[1755621504137,43.96,178.41,178.37,16.58753715]
[1755621504345,17.26753715,178.4,178.35,16.84778]
[1755621504644,17.26753715,178.4,178.32,26.06]
[1755621504645,16.58753715,178.36,178.32,0.06]
[1755621504804,16.58753715,178.33,178.32,0.06]
[1755621505008,17.40969872,178.33,178.32,0.06]
[1755621505210,0.14216157,178.32,178.25,0.1]
[1755621505438,16.58753715,178.3,178.25,0.1]
[1755621505737,43.98,178.29,178.25,0.1]
[1755621505934,44.66,178.29,178.25,16.68753715]
[1755621506119,43.98,178.29,178.25,0.1]
[1755621506322,0.56154537,178.31,178.28,16.68753715]
[1755621506522,43.96,178.31,178.29,16.58753715]
[1755621506915,43.96,178.31,178.28,0.1]
[1755621506916,43.96,178.31,178.28,16.68753715]
[1755621507243,43.96,178.31,178.28,0.1]
[1755621507244,44.64,178.31,178.28,0.1]
[1755621507441,16.58753715,178.29,178.28,0.1]
[1755621507811,17.26753715,178.29,178.28,0.1]
[1755621508239,43.96,178.31,178.28,0.1]
[1755621508412,44.64,178.31,178.28,0.1]
[1755621508617,43.94,178.31,178.29,16.58753715]
[1755621508818,44.62,178.31,178.28,0.1]
[1755621509035,17.26753715,178.3,178.28,0.1]
[1755621509416,0.68,178.29,178.28,0.1]
[1755621509816,44.50154537,178.31,178.28,0.1]
[1755621510029,43.94,178.31,178.28,0.1]
[1755621510235,0.68,178.3,178.28,0.1]
[1755621510440,43.94,178.31,178.28,0.1]
[1755621510631,43.94,178.31,178.29,16.58753715]
[1755621510846,43.94,178.31,178.3,16.58753715]
[1755621511046,43.94,178.31,178.29,16.58753715]
[1755621511465,26.68,178.36,178.3,30.18313116]
[1755621511466,0.68,178.36,178.3,30.18313116]
[1755621511758,43.9,178.35,178.34,16.58753715]
[1755621512628,43.9,178.35,178.28,0.1]
[1755621512876,61.16753715,178.35,178.29,16.58753715]
[1755621513163,44.58,178.35,178.31,16.58753715]
[1755621513325,44.58,178.35,178.29,42.58753715]
[1755621513326,0.71,178.34,178.29,42.58753715]
[1755621513528,43.9,178.35,178.3,16.58753715]
[1755621513721,16.58753715,178.38,178.33,16.58753715]
[1755621513951,44.61,178.37,178.33,16.58753715]
[1755621514256,43.9,178.37,178.35,16.58753715]
[1755621514451,44.61,178.37,178.34,16.58753715]
[1755621514672,44.61,178.37,178.32,26.0]
[1755621514673,0.71,178.36,178.33,16.58753715]
[1755621514827,0.71,178.36,178.32,42.58753715]
[1755621515028,0.71,178.36,178.32,26.0]
[1755621515029,0.71,178.35,178.32,26.0]
[1755621515335,0.71,178.34,178.3,16.58753715]
[1755621515652,43.88,178.33,178.3,16.58753715]
[1755621515834,17.29753715,178.32,178.28,0.1]
[1755621516255,17.29753715,178.31,178.28,0.1]
[1755621516432,0.71,178.31,178.28,0.1]
[1755621516630,16.58753715,178.31,178.28,0.1]
[1755621516829,17.85908252,178.3,178.28,0.1]
[1755621517034,43.86,178.29,178.28,0.1]
[1755621518335,61.15753715,178.29,178.28,0.1]
[1755621518539,66.90853825,178.29,178.28,0.1]
[1755621519876,84.24836685,178.29,178.28,1e-08]
[1755621520032,84.24836685,178.29,178.26,0.06]
[1755621520033,39.73775558,178.27,178.26,0.06]
[1755621520226,13.73775558,178.26,178.25,0.1]
[1755621520535,80.44507619,178.26,178.25,0.1]
[1755621520929,84.18792688,178.26,178.24,0.06]
[1755621521257,16.58753715,178.18,178.17,0.1]
[1755621521455,43.78,178.18,178.17,0.1]
[1755621522155,61.07753715,178.18,178.17,0.1]
[1755621522356,43.78,178.18,178.17,0.1]
[1755621522658,16.58753715,178.21,178.17,0.1]
[1755621522860,60.36753715,178.2,178.17,0.1]
[1755621523154,16.58753715,178.18,178.17,0.1]
[1755621523345,1.27154537,178.19,178.17,0.1]
[1755621523555,17.29753715,178.18,178.17,0.1]
[1755621525454,23.05200088,178.18,178.17,0.1]
[1755621525672,0.14216157,178.17,178.05,16.58753715]
[1755621525966,0.14216157,178.14,178.05,42.58753715]
[1755621526261,16.58753715,178.11,178.06,16.58753715]
[1755621526472,60.86908252,178.1,178.04,16.58753715]
[1755621526693,44.28154537,178.1,178.03,26.59]
[1755621526977,43.72,178.1,178.06,16.58753715]
[1755621527358,26.71,178.16,178.09,16.58753715]
[1755621527555,60.99124409,178.15,178.09,16.58753715]
[1755621527759,16.58753715,178.14,178.09,16.58753715]
[1755621527983,1.27154537,178.13,178.07,16.58753715]
[1755621528176,43.68,178.12,178.08,16.58753715]
[1755621528881,0.56154537,178.15,178.1,16.58753715]
[1755621529081,43.64,178.14,178.12,16.58753715]
[1755621529258,0.71,178.19,178.13,17.17753715]
[1755621529460,43.66,178.18,178.16,16.58753715]
[1755621529684,43.66,178.17,178.13,26.0]
[1755621529891,16.58753715,178.14,178.06,0.59]
[1755621530063,16.58753715,178.11,178.05,16.58753715]
[1755621530258,43.7,178.1,178.06,0.59]
[1755621530457,43.7,178.1,178.07,16.58753715]
[1755621530658,43.7,178.1,178.09,30.18313116]
[1755621530967,43.7,178.12,178.09,16.58753715]
[1755621531163,43.7,178.12,178.11,26.0]
[1755621531590,43.7,178.12,178.08,42.58753715]
[1755621531854,16.58753715,178.1,178.04,30.24313116]
[1755621532065,16.58753715,178.1,178.05,16.58753715]
[1755621532276,16.58753715,178.1,178.04,39.65559401]
[1755621532489,17.29753715,178.1,178.04,26.06]
[1755621532717,16.58753715,178.09,178.04,0.06]
[1755621532988,0.71,178.1,178.05,26.0]
[1755621532989,43.7,178.08,178.05,26.0]
[1755621533569,43.7,178.08,178.05,42.58753715]
[1755621533756,43.7,178.08,178.05,26.0]
[1755621533982,60.99753715,178.08,178.05,26.0]
[1755621534187,16.58753715,178.06,178.04,0.06]
[1755621534999,0.56154537,178.07,178.04,0.06]
[1755621535200,16.58753715,178.05,178.04,0.06]
[1755621535522,16.58753715,178.06,178.04,0.06]
[1755621535875,0.71,178.08,178.04,0.06]
[1755621536082,43.62,178.07,178.04,0.06]
[1755621536595,43.6,178.06,178.05,16.58753715]
[1755621536803,43.6,178.06,178.04,0.06]
[1755621537118,43.6,178.06,178.04,16.64753715]
[1755621537488,16.58753715,178.1,178.05,16.58753715]
[1755621537691,43.62,178.09,178.05,16.58753715]
[1755621537919,43.62,178.09,178.04,0.65]
[1755621537920,43.62,178.09,178.06,16.58753715]
[1755621538106,43.62,178.09,178.08,16.58753715]
[1755621538278,0.71,178.17,178.09,13.59559401]
[1755621538485,0.71,178.17,178.12,16.58753715]
[1755621538486,43.64,178.16,178.12,16.58753715]
[1755621538800,16.58753715,178.14,178.09,42.58753715]
[1755621538983,16.58753715,178.12,178.07,42.58753715]
[1755621539189,43.64,178.11,178.1,16.58753715]
[1755621539597,43.64,178.11,178.08,13.59559401]
[1755621539989,43.64,178.11,178.1,16.58753715]
[1755621540198,43.64,178.11,178.07,26.0]
[1755621540420,43.64,178.11,178.09,16.58753715]
[1755621540722,0.71,178.17,178.1,43.17753715]
[1755621540910,43.62,178.14,178.11,16.58753715]
[1755621541221,0.71,178.13,178.1,42.58753715]
[1755621541417,43.62,178.14,178.12,16.58753715]
[1755621541596,43.62,178.14,178.13,16.58753715]
[1755621541796,43.62,178.14,178.1,26.0]
[1755621542212,43.62,178.14,178.11,16.58753715]
[1755621542396,43.62,178.14,178.12,16.58753715]
[1755621543199,43.62,178.14,178.1,26.0]
[1755621543400,17.25753715,178.13,178.07,16.58753715]
[1755621543712,16.58753715,178.08,178.04,0.06]
[1755621543918,43.6,178.07,178.05,16.58753715]
[1755621544102,43.62,178.07,178.06,16.58753715]
[1755621544298,43.62,178.07,178.04,16.64753715]
[1755621544498,43.62,178.07,178.06,42.58753715]
[1755621544713,43.62,178.07,178.06,26.0]
[1755621544908,43.62,178.07,178.06,42.58753715]
[1755621545117,43.62,178.07,178.06,26.0]
[1755621545300,43.62,178.07,178.06,16.58753715]
[1755621545494,43.62,178.07,178.05,30.18313116]
[1755621545802,43.62,178.07,178.04,42.64753715]
[1755621546002,44.29,178.07,178.04,26.06]
[1755621546412,0.67,178.06,178.04,0.06]
[1755621546606,17.81908252,178.06,178.04,0.06]
[1755621546825,0.67,178.05,178.04,0.06]
[1755621547030,17.25753715,178.05,178.04,0.06]
[1755621548298,17.39969872,178.05,178.04,0.06]
[1755621548702,23.0160986,178.05,178.04,0.06]
[1755621549010,26.14216157,178.01,178.0,0.06]
[1755621549319,0.14216157,178.0,177.98,0.06]
[1755621549626,17.96124409,177.99,177.98,0.06]
[1755621550006,1.37370694,177.99,177.98,0.06]
[1755621550226,17.96124409,177.99,177.98,0.06]
[1755621551428,23.57953725,177.99,177.98,0.06]
[1755621551726,37.17513126,177.99,177.98,0.06]
[1755621551947,26.0,177.97,177.96,0.06]
[1755621552251,26.14216157,177.95,177.94,0.1]
[1755621552397,42.72969872,177.95,177.94,0.1]
[1755621552593,43.39969872,177.95,177.94,0.1]
[1755621554236,49.01925477,177.95,177.94,0.1]
[1755621554448,49.58080014,177.95,177.94,0.1]
[1755621554739,63.17639415,177.95,177.94,0.1]
[1755621555123,49.58080014,177.95,177.94,0.1]
[1755621555432,43.96124409,177.95,177.94,0.1]
[1755621556013,49.58080014,177.95,177.94,0.1]
[1755621556424,26.56154537,177.95,177.94,0.1]
[1755621556642,17.81908252,177.95,177.94,0.1]
[1755621556840,23.43863857,177.95,177.94,0.1]
[1755621557026,49.58080014,177.95,177.94,0.1]
[1755621557455,23.58080014,177.95,177.94,0.1]
[1755621557677,49.58080014,177.95,177.94,0.1]
[1755621557841,43.96124409,177.95,177.94,0.1]
[1755621558360,49.58080014,177.95,177.94,0.1]
[1755621558729,26.0,177.91,177.83,0.7]
[1755621558961,16.58753715,177.84,177.68,0.06]
[1755621559253,0.56154537,177.83,177.74,0.7]
[1755621559556,43.64,177.82,177.78,13.59559401]
[1755621559855,43.64,177.82,177.76,0.7]
[1755621560024,43.64,177.82,177.76,17.28753715]
[1755621560025,60.22753715,177.82,177.76,17.28753715]
[1755621560242,43.64,177.82,177.76,0.7]
[1755621560534,16.58753715,177.78,177.72,14.35559401]
[1755621560735,43.68,177.77,177.72,0.06]
[1755621561058,16.58753715,177.73,177.72,0.06]
[1755621561225,43.68,177.73,177.72,0.06]
[1755621561424,16.58753715,177.73,177.72,0.06]
[1755621561653,43.78,177.73,177.72,0.76]
[1755621561862,0.56154537,177.79,177.72,0.76]
[1755621562157,31.24620222,177.82,177.72,0.76]
[1755621562158,60.40753715,177.78,177.72,17.34753715]
[1755621562350,0.56154537,177.79,177.75,16.58753715]
[1755621562650,16.58753715,177.76,177.72,0.06]
[1755621562855,16.58753715,177.74,177.72,0.06]
[1755621563159,0.56154537,177.8,177.73,17.28753715]
[1755621563333,43.88,177.79,177.75,16.58753715]
[1755621563528,43.88,177.79,177.78,16.58753715]
[1755621563733,43.9,177.8,177.74,0.76]
[1755621563952,16.58753715,177.78,177.74,0.06]
[1755621564259,16.58753715,177.77,177.74,0.06]
[1755621564425,16.58753715,177.75,177.74,0.06]
[1755621564627,26.0,177.73,177.72,0.06]
[1755621564840,43.29124409,177.73,177.72,0.06]
[1755621565158,31.76994028,177.69,177.68,0.06]
[1755621565369,92.8790228,177.69,177.68,0.06]
[1755621565568,0.56154537,177.69,177.68,0.06]
[1755621565868,43.98,177.69,177.68,0.06]
[1755621566050,60.58753715,177.69,177.68,0.06]
[1755621566227,61.39969872,177.69,177.68,0.06]
[1755621566429,61.96124409,177.69,177.68,0.06]
[1755621566934,0.56154537,177.7,177.68,0.06]
[1755621567260,44.04,177.69,177.68,0.06]
[1755621567556,14.82713938,177.79,177.7,26.0]
[1755621567791,60.70753715,177.78,177.72,16.58753715]
[1755621567963,0.56154537,177.83,177.76,16.58753715]
[1755621568126,0.56154537,177.87,177.8,16.58753715]
[1755621568458,44.18,177.86,177.81,0.7]
[1755621568830,44.18,177.86,177.82,13.59559401]
[1755621569029,44.18,177.86,177.83,17.28753715]
[1755621569237,44.18,177.86,177.78,5.62484045]
[1755621569238,0.56154537,177.85,177.8,26.0]
[1755621569427,16.58753715,177.81,177.67,0.1]
[1755621569628,44.76154537,177.8,177.75,26.0]
[1755621569850,16.58753715,177.76,177.69,0.7]
[1755621570130,0.67,177.88,177.75,30.18313116]
[1755621570352,16.58753715,177.83,177.77,30.18313116]
[1755621570653,16.58753715,177.78,177.72,0.7]
[1755621570861,44.28,177.77,177.73,26.0]
[1755621571064,44.28,177.76,177.74,26.0]
[1755621571254,44.28,177.77,177.76,13.59559401]
[1755621571459,0.56154537,177.87,177.79,26.0]
[1755621571671,43.44588198,177.89,177.82,16.58753715]
[1755621571672,44.28,177.86,177.82,16.58753715]
[1755621571873,44.28,177.86,177.83,14.29559401]
[1755621572049,44.28,177.86,177.84,0.7]
[1755621572249,44.28,177.86,177.85,40.29559401]
[1755621572460,16.58753715,177.92,177.85,43.28753715]
[1755621572772,0.03,177.96,177.85,43.28753715]
[1755621572773,16.58753715,177.9,177.87,26.0]
[1755621572972,16.58753715,177.88,177.87,26.0]
[1755621573170,16.58753715,177.88,177.86,26.0]
[1755621573369,16.58753715,177.87,177.79,0.69]
[1755621573575,16.58753715,177.87,177.77,0.69]
[1755621573576,0.56154537,177.86,177.77,0.69]
[1755621573881,0.56154537,177.86,177.71,14.0675689]
[1755621573882,16.58753715,177.78,177.74,0.69]
[1755621574051,60.94753715,177.78,177.75,0.69]
[1755621574381,44.38,177.82,177.8,26.0]
[1755621574688,44.38,177.82,177.81,26.0]
[1755621574979,44.38,177.82,177.81,26.69]
[1755621575304,44.38,177.82,177.81,43.27753715]
[1755621575443,44.38,177.82,177.81,56.87313116]
[1755621575649,44.42,177.86,177.82,13.59559401]
[1755621575859,44.42,177.86,177.85,26.0]
[1755621576076,44.42,177.86,177.85,26.69]
[1755621576276,44.42,177.86,177.81,0.69]
[1755621576578,16.58753715,177.84,177.81,26.0]
[1755621576884,16.58753715,177.82,177.75,0.69]
[1755621577181,44.42,177.82,177.76,13.73775558]
[1755621577384,44.42,177.82,177.81,26.0]
[1755621577953,44.42,177.82,177.75,0.69]
[1755621578384,16.58753715,177.81,177.77,13.59559401]
[1755621578577,16.58753715,177.79,177.74,13.59559401]
[1755621578904,44.42,177.82,177.71,16.58753715]
[1755621578905,16.58753715,177.77,177.71,16.58753715]
[1755621579072,16.58753715,177.77,177.7,0.69]
[1755621579073,16.58753715,177.74,177.7,0.69]
[1755621579395,16.58753715,177.74,177.72,26.0]
[1755621579597,16.58753715,177.75,177.72,26.0]
[1755621579763,16.58753715,177.75,177.7,0.69]
[1755621579962,44.44,177.77,177.73,26.0]
[1755621580162,44.44,177.77,177.72,0.69]
[1755621580360,16.58753715,177.76,177.73,13.59559401]
[1755621580594,61.02753715,177.77,177.74,26.0]
[1755621580901,16.58753715,177.76,177.72,0.69]
[1755621581100,16.58753715,177.76,177.73,26.0]
[1755621581393,16.58753715,177.74,177.7,0.06]
[1755621581594,16.58753715,177.72,177.71,26.0]
[1755621581780,61.04753715,177.72,177.71,26.0]
[1755621582098,61.04753715,177.72,177.7,0.06]
[1755621582276,44.46,177.72,177.71,26.0]
[1755621582475,61.04753715,177.72,177.71,26.0]
[1755621582670,61.04753715,177.72,177.7,0.06]
[1755621582876,17.28753715,177.71,177.7,0.06]
[1755621583386,16.58753715,177.71,177.7,0.06]
[1755621584076,17.28753715,177.71,177.7,0.06]
[1755621584419,44.36,177.71,177.7,0.06]
[1755621584567,60.94753715,177.71,177.7,0.06]
[1755621584767,61.64753715,177.71,177.7,0.06]
[1755621585175,60.94753715,177.71,177.7,0.06]
[1755621585476,61.64753715,177.71,177.7,0.06]
[1755621585801,44.36,177.71,177.7,0.06]
[1755621586001,60.94753715,177.71,177.7,0.06]
[1755621586377,44.36,177.71,177.7,0.06]
[1755621586791,60.94753715,177.71,177.7,0.06]
[1755621587097,16.58753715,177.71,177.7,0.06]
[1755621587323,61.60753715,177.71,177.68,0.06]
[1755621587483,16.58753715,177.69,177.68,0.06]
[1755621587832,0.56154537,177.7,177.68,0.06]
[1755621588026,0.56154537,177.73,177.68,26.75]
[1755621588226,44.42,177.72,177.68,26.75]
[1755621588382,16.58753715,177.71,177.68,26.06]
[1755621588693,0.7,177.75,177.68,0.06]
[1755621588885,16.58753715,177.73,177.69,26.0]
[1755621589083,61.24753715,177.74,177.69,26.0]
[1755621589383,16.58753715,177.73,177.69,26.0]
[1755621589781,16.58753715,177.77,177.71,42.58753715]
[1755621589981,44.64,177.76,177.73,16.58753715]
[1755621590182,44.64,177.76,177.71,26.69]
[1755621590509,44.64,177.76,177.71,43.27753715]
[1755621590707,44.64,177.76,177.72,16.58753715]
[1755621590919,44.64,177.76,177.73,17.27753715]
[1755621591410,44.64,177.76,177.75,42.58753715]
[1755621591574,44.6,177.79,177.75,42.58753715]
[1755621591780,44.6,177.8,177.72,13.73775558]
[1755621592099,44.6,177.79,177.76,26.0]
[1755621592806,61.18753715,177.79,177.74,26.0]
[1755621593005,61.18753715,177.79,177.7,13.73775558]
[1755621593006,16.58753715,177.75,177.72,26.0]
[1755621593193,44.58,177.75,177.73,26.0]
[1755621593389,16.58753715,177.74,177.68,17.33753715]
[1755621593608,16.58753715,177.71,177.68,0.06]
[1755621593900,61.14753715,177.71,177.69,26.0]
[1755621594122,16.58753715,177.7,177.68,0.06]
[1755621594312,16.58753715,177.7,177.69,26.0]
[1755621594896,44.56,177.71,177.68,0.06]
[1755621595092,61.14753715,177.71,177.69,26.0]
[1755621595439,16.58753715,177.7,177.69,26.0]
[1755621595722,17.28753715,177.7,177.68,0.06]
[1755621595931,17.28753715,177.69,177.68,0.06]
[1755621596334,16.58753715,177.69,177.68,0.06]
[1755621596843,44.56,177.71,177.68,0.06]
[1755621596844,16.58753715,177.7,177.68,0.06]
[1755621597004,16.58753715,177.69,177.68,0.06]
[1755621597197,17.28753715,177.69,177.68,0.06]
[1755621597704,16.58753715,177.69,177.68,0.06]
[1755621598200,17.28753715,177.69,177.68,0.06]
[1755621598404,44.56,177.71,177.68,0.06]
[1755621598813,16.58753715,177.69,177.68,0.06]
[1755621599400,44.56,177.71,177.68,0.06]
[1755621599823,16.58753715,177.71,177.68,0.06]
[1755621600100,44.5,177.7,177.69,26.0]
[1755621600311,0.03,177.73,177.7,39.59559401]
[1755621600512,0.03,177.73,177.7,26.69]
[1755621600727,0.03,177.73,177.68,0.06]
[1755621600930,16.58753715,177.72,177.69,26.0]
[1755621601228,0.03,177.73,177.69,42.58753715]
[1755621601406,0.03,177.73,177.68,0.06]
[1755621601407,0.03,177.73,177.71,26.0]
[1755621601952,16.61753715,177.73,177.7,26.0]
[1755621602252,0.03,177.73,177.7,26.0]
[1755621602402,0.03,177.73,177.71,17.27753715]
[1755621602598,0.03,177.73,177.69,42.58753715]
[1755621602836,0.03,177.73,177.7,0.69]
[1755621603141,0.03,177.73,177.72,42.58753715]
[1755621603622,0.03,177.73,177.72,48.91436586]
[1755621603944,0.03,177.73,177.69,0.7]
[1755621604144,0.03,177.73,177.72,42.58753715]
[1755621604436,0.03,177.73,177.72,26.0]
[1755621604661,0.03,177.73,177.72,43.42969872]
[1755621605141,0.03,177.73,177.72,17.42969872]
[1755621605321,0.03,177.73,177.72,36.65212144]
[1755621605643,0.03,177.73,177.71,16.58753715]
[1755621605851,0.03,177.73,177.72,16.58753715]
[1755621606148,0.03,177.73,177.72,17.42969872]
[1755621606851,0.03,177.73,177.71,26.0]
[1755621607010,0.03,177.73,177.72,26.0]
[1755621607346,0.68,177.72,177.68,0.06]
[1755621607519,0.68,177.71,177.68,0.06]
[1755621607718,44.42,177.72,177.68,16.64753715]
[1755621607926,61.00753715,177.72,177.68,0.06]
[1755621608124,0.03,177.73,177.7,16.58753715]
[1755621608319,0.03,177.73,177.71,16.58753715]
[1755621608853,0.71,177.73,177.68,0.06]
[1755621609008,16.58753715,177.71,177.68,0.06]
[1755621609208,16.58753715,177.69,177.68,0.06]
[1755621609410,61.70753715,177.69,177.68,0.06]
[1755621609640,45.12,177.69,177.68,0.06]
[1755621609820,61.70753715,177.69,177.68,0.06]
[1755621610023,44.44,177.69,177.68,0.06]
[1755621610433,44.4,177.7,177.68,0.06]
[1755621610726,60.98753715,177.7,177.68,0.06]
[1755621610931,17.26753715,177.69,177.68,0.06]
[1755621611214,44.4,177.7,177.68,0.06]
[1755621611913,44.4,177.72,177.69,26.0]
[1755621612112,16.58753715,177.7,177.68,0.06]
[1755621612606,17.26753715,177.71,177.68,0.06]
[1755621612809,16.58753715,177.7,177.68,0.06]
[1755621613047,16.58753715,177.69,177.68,0.06]
[1755621613411,17.26753715,177.7,177.68,0.06]
[1755621613612,44.4,177.72,177.68,0.06]
[1755621613847,44.34,177.72,177.7,16.58753715]
[1755621614137,44.34,177.72,177.68,16.64753715]
[1755621614309,45.02,177.72,177.68,16.64753715]
[1755621614507,44.34,177.72,177.69,16.58753715]
[1755621614707,44.34,177.72,177.7,26.0]
[1755621615110,61.60753715,177.72,177.68,0.06]
[1755621615445,0.68,177.71,177.68,0.06]
[1755621615744,44.34,177.72,177.68,0.06]
[1755621616210,61.60753715,177.72,177.68,0.06]
[1755621616413,45.02,177.72,177.68,0.06]
[1755621616917,16.58753715,177.7,177.68,0.06]
[1755621617129,16.58753715,177.69,177.68,0.06]
[1755621617312,17.26753715,177.69,177.68,0.06]
[1755621617619,17.82908252,177.69,177.66,0.06]
[1755621617832,16.58753715,177.67,177.66,0.06]
[1755621618019,44.94,177.68,177.66,0.06]
[1755621618217,1.24154537,177.67,177.66,0.06]
[1755621618435,17.26753715,177.67,177.66,0.06]
[1755621619238,0.68,177.67,177.66,0.06]
[1755621619539,17.26753715,177.67,177.66,0.06]
[1755621620625,17.82908252,177.67,177.66,0.06]
[1755621620827,0.68,177.7,177.66,0.06]
[1755621621023,16.58753715,177.72,177.66,0.06]
[1755621621222,44.2,177.69,177.66,0.06]
[1755621621931,17.26753715,177.68,177.66,0.06]
[1755621622122,16.58753715,177.67,177.66,0.06]
[1755621622322,0.68,177.67,177.66,0.06]
[1755621622528,16.58753715,177.68,177.66,0.06]
[1755621622732,60.78753715,177.69,177.66,0.06]
[1755621623245,16.58753715,177.68,177.66,0.06]
[1755621623541,44.2,177.69,177.66,0.06]
[1755621623843,17.26753715,177.67,177.66,0.06]
[1755621624846,17.26753715,177.67,177.63,0.56]
[1755621625021,1.24154537,177.66,177.63,0.56]
[1755621625211,16.58753715,177.64,177.63,0.56]
[1755621625414,17.26753715,177.64,177.63,0.56]
[1755621626527,61.36753715,177.64,177.63,0.56]
[1755621626733,60.68753715,177.64,177.63,0.56]
[1755621626927,44.1,177.64,177.63,0.56]
[1755621627127,61.36753715,177.64,177.63,0.56]
[1755621627448,61.50969872,177.64,177.63,0.56]
[1755621627819,45.48370694,177.64,177.63,0.56]
[1755621628030,62.07124409,177.64,177.63,0.56]
[1755621628644,61.92908252,177.64,177.63,0.56]
[1755621629751,45.48370694,177.64,177.63,0.56]
[1755621629954,61.92908252,177.64,177.63,0.56]
[1755621630121,62.07124409,177.64,177.63,0.56]
[1755621630322,81.29620085,177.64,177.63,0.56]
[1755621630631,0.14216157,177.63,177.58,5.7786438]
[1755621630836,16.58753715,177.59,177.58,5.7786438]
[1755621631020,74.9068381,177.59,177.58,4.6886438]
[1755621631227,75.4868381,177.59,177.58,4.5886438]
[1755621631674,84.86192293,177.59,177.58,4.5886438]
[1755621632362,40.87930095,177.59,177.58,4.5886438]
[1755621632560,106.99778578,177.59,177.58,4.5886438]
[1755621632969,94.15030073,177.59,177.58,4.5886438]
[1755621633147,110.73783788,177.59,177.58,4.5886438]
[1755621633464,84.73783788,177.59,177.58,4.5886438]
[1755621633641,88.51935305,177.59,177.58,4.5886438]
[1755621633830,101.7068381,177.59,177.58,4.5886438]
[1755621634034,90.75024863,177.59,177.58,4.5886438]
[1755621634461,107.33778578,177.59,177.58,4.5886438]
[1755621635040,81.33778578,177.59,177.58,4.5886438]
[1755621635236,95.06673877,177.59,177.58,4.5886438]
[1755621635765,23.73775558,177.58,177.57,0.06]
[1755621635973,26.14216157,177.56,177.55,200.0]
[1755621636135,101.8868381,177.56,177.55,200.0]
[1755621636459,101.9068381,177.56,177.55,50.73294941]
[1755621636633,101.9068381,177.56,177.54,2.0]
[1755621636634,0.14216157,177.55,177.54,2.0]
[1755621636834,40.80529273,177.55,177.54,2.0]
[1755621637055,35.34185602,177.55,177.54,1.94]
[1755621637255,13.73775558,177.54,177.44,0.0631875]
[1755621637460,59.39930095,177.54,177.44,0.0631875]
[1755621637767,81.61937161,177.54,177.53,41.6338585]
[1755621637955,107.61937161,177.54,177.53,41.6338585]
[1755621638461,5.63063063,177.6,177.53,41.6338585]
[1755621638782,16.58753715,177.54,177.53,41.6338585]
[1755621639066,16.58753715,177.61,177.53,58.93139565]
[1755621639268,2.93860907,177.63,177.56,16.58753715]
[1755621639469,0.56154537,177.63,177.57,17.29753715]
[1755621639780,41.14154537,177.69,177.58,0.71]
[1755621640139,45.08,177.66,177.63,16.58753715]
[1755621640338,45.08,177.66,177.64,0.71]
[1755621640670,16.61753715,177.73,177.65,16.58753715]
[1755621640848,45.12,177.68,177.66,16.58753715]
[1755621641047,45.12,177.69,177.64,26.0]
[1755621641247,16.58753715,177.67,177.64,26.0]
[1755621641449,45.68154537,177.66,177.59,26.0]